bitfinex/quotes_ETHUSD_20241216
["timestamp","ask_amount","ask_price","bid_price","bid_amount"]
[1734321847986,2.6999627,3941.0,3939.8,3.08819]
[1734321847987,2.6999627,3941.0,3940.1,0.7814]
[1734321848497,2.53757,3940.8,3940.1,0.7814]
[1734321850709,0.1625327,3941.0,3940.1,0.7814]
[1734321850853,2.5378,3940.5,3940.1,0.7814]
[1734321851605,2.53781,3940.4,3940.1,0.7814]
[1734321853816,2.1002245,3940.6,3939.8,0.8024]
[1734321854106,2.5382,3939.8,3938.6,0.8024]
[1734321854550,2.5382,3939.8,3938.7,0.8024]
[1734321854695,2.53809,3940.0,3938.9,0.8024]
[1734321854901,2.53814,3939.9,3938.9,0.8024]
[1734321855312,1.96168919,3940.4,3939.1,0.8024]
[1734321855511,1.96168919,3940.4,3939.3,0.8024]
[1734321855712,2.53775,3940.5,3939.4,0.55]
[1734321855913,2.53775,3940.5,3939.6,0.55]
[1734321856209,2.53775,3940.5,3939.7,0.8024]
[1734321856838,2.53758,3940.8,3939.8,0.55]
[1734321857044,1.96168919,3940.9,3939.9,0.8024]
[1734321857244,2.53762,3940.7,3939.9,0.93764]
[1734321857647,2.53769,3940.6,3939.9,0.93764]
[1734321860851,0.1625327,3941.0,3939.9,0.93764]
[1734321861160,2.53762,3940.7,3939.9,0.93764]
[1734321861314,2.53762,3940.7,3940.0,0.55]
[1734321861508,2.53762,3940.7,3940.2,0.7767]
[1734321862821,0.1625327,3941.0,3940.2,0.7767]
[1734321863037,2.53764,3940.7,3940.2,0.7767]
[1734321863411,0.1625327,3941.0,3940.2,0.7767]
[1734321863412,2.5375,3940.9,3940.2,0.7767]
[1734321863626,0.1625327,3941.0,3940.2,0.7767]
[1734321863959,0.1625327,3941.0,3940.4,0.7767]
[1734321864158,0.1625327,3941.0,3940.6,0.7767]
[1734321864460,0.1625327,3941.0,3940.7,0.55]
[1734321864769,0.1625327,3941.0,3940.8,0.7767]
[1734321866250,0.1625327,3941.0,3940.9,1.3174]
[1734321866430,0.1625327,3941.0,3940.9,1.702905]
[1734321866763,0.1625327,3941.0,3940.9,1.3174]
[1734321868376,0.1625327,3941.0,3940.9,0.7674]
[1734321871486,0.1625327,3941.0,3940.1,0.803]
[1734321872356,2.6999927,3941.0,3940.1,0.803]
[1734321873154,0.1625327,3941.0,3940.2,0.55]
[1734321873359,0.1625327,3941.0,3940.4,0.55]
[1734321873532,2.6999727,3941.0,3940.4,0.55]
[1734321873729,2.6999727,3941.0,3940.3,0.1353]
[1734321873730,0.1625327,3941.0,3940.3,0.1353]
[1734321874329,2.53756,3940.8,3940.3,0.1353]
[1734321875490,0.1625327,3941.0,3940.1,0.803]
[1734321875788,2.53776,3940.5,3940.1,0.803]
[1734321876195,2.6999827,3941.0,3940.1,0.803]
[1734321876364,2.53752,3940.9,3940.1,0.803]
[1734321876558,0.1625327,3941.0,3940.1,0.803]
[1734321876879,2.53756,3940.8,3940.1,0.803]
[1734321877479,0.9248327,3941.0,3940.1,0.803]
[1734321877695,0.34621327,3940.9,3940.1,0.803]
[1734321877900,2.53776,3940.5,3940.1,0.803]
[1734321878307,0.7623,3940.9,3940.1,0.803]
[1734321878490,2.53782,3940.4,3939.8,0.785]
[1734321879408,2.53766,3940.7,3939.8,0.785]
[1734321879915,4.66169189,3941.0,3939.9,0.55]
[1734321880205,4.66169189,3941.0,3940.0,0.1335]
[1734321880402,2.5375,3940.9,3940.0,0.1335]
[1734321881107,2.12422189,3941.0,3940.0,0.1335]
[1734321881108,2.53758,3940.8,3940.0,0.1335]
[1734321881592,0.1625327,3941.0,3940.2,0.55]
[1734321881918,0.1625327,3941.0,3940.6,3.08767]
[1734321882213,0.1625327,3941.0,3940.8,0.55]
[1734321882395,0.1625327,3941.0,3940.9,1.3302]
[1734321885815,0.1625327,3941.0,3940.9,2.52870513]
[1734321886017,0.1625327,3941.0,3940.9,4.35406298]
[1734321886216,0.1625327,3941.0,3940.9,7.35406298]
[1734321886918,0.1625327,3941.0,3940.9,6.29907711]
[1734321887730,2.53622,3942.9,3941.1,1.3093]
[1734321887931,2.53628,3942.8,3941.6,0.55]
[1734321888338,2.53628,3942.8,3941.7,0.7593]
[1734321889259,0.00852466,3943.1,3941.8,0.55]
[1734321889466,0.00852466,3943.1,3942.1,2.5367]
[1734321889761,1.94509301,3943.2,3942.2,0.8226]
[1734321890109,4.48113301,3943.2,3942.2,0.8226]
[1734321891164,1.94509301,3943.2,3942.2,0.8226]
[1734321892062,1.94509301,3943.2,3942.3,0.33593]
[1734321892770,2.53608,3943.1,3942.2,0.8226]
[1734321893196,0.8083,3943.5,3942.2,0.8226]
[1734321894209,2.53595,3943.3,3942.2,0.8226]
[1734321894668,0.8083,3943.5,3942.2,0.8226]
[1734321895117,2.53622,3942.9,3942.2,0.8226]
[1734321895326,0.755,3942.8,3942.2,0.8226]
[1734321895816,3.29127,3942.8,3942.2,0.8226]
[1734321896114,2.53636,3942.7,3941.7,0.7611]
[1734321896711,2.53639,3942.6,3941.7,0.7611]
[1734321897009,2.53639,3942.6,3941.7,1.1812273]
[1734321897587,0.755,3942.8,3941.7,0.7611]
[1734321897896,3.29129,3942.8,3941.7,0.7611]
[1734321898711,2.53647,3942.5,3941.7,0.7611]
[1734321900640,0.755,3942.8,3941.7,0.7611]
[1734321900810,2.53651,3942.5,3941.7,0.7611]
[1734321901128,0.329151,3942.5,3941.7,0.7611]
[1734321901274,2.53666,3942.2,3941.4,0.7988]
[1734321901619,4.6365545,3942.7,3941.4,0.7988]
[1734321901620,2.53654,3942.4,3941.4,0.7988]
[1734321901915,2.53661,3942.3,3941.4,0.7988]
[1734321902118,0.8254,3942.2,3940.6,2.53762]
[1734321902322,2.53684,3941.9,3940.7,0.333642]
[1734321902617,0.8254,3942.2,3940.8,0.8286]
[1734321902618,2.53679,3942.0,3940.8,0.8286]
[1734321903171,0.8254,3942.2,3940.9,2.53747]
[1734321903430,3.36208,3942.2,3941.0,0.8286]
[1734321904420,0.8254,3942.2,3941.0,0.8286]
[1734321904619,2.5369,3941.9,3941.0,0.8286]
[1734321905277,3.3621,3942.2,3941.0,0.8286]
[1734321906335,0.8254,3942.2,3941.0,0.8286]
[1734321906628,2.53673,3942.1,3941.0,0.8286]
[1734321908639,5.60495507,3942.6,3940.4,1.1818405]
[1734321908640,3.31239,3942.6,3941.4,2.53716]
[1734321908805,2.53622,3942.9,3941.5,0.8286]
[1734321909037,0.776,3942.9,3941.5,0.8286]
[1734321909240,2.53637,3942.7,3941.6,0.8286]
[1734321909559,2.53637,3942.7,3941.7,0.336576]
[1734321909758,1.92509301,3943.4,3942.0,0.755]
[1734321910077,2.536,3943.3,3942.2,0.755]
[1734321910226,2.536,3943.3,3942.4,0.7813]
[1734321910426,2.53604,3943.2,3942.4,0.7813]
[1734321912068,1.92509301,3943.4,3942.5,0.55]
[1734321912275,2.53582,3943.5,3942.6,0.13313]
[1734321912967,2.53582,3943.5,3942.7,0.7644]
[1734321913769,3.04433703,3943.7,3942.7,0.7644]
[1734321915826,2.53575,3943.6,3942.7,0.7644]
[1734321916545,0.50863703,3943.7,3942.7,0.7644]
[1734321916756,4.02531751,3943.0,3941.4,1.05498587]
[1734321917079,4.02531751,3943.0,3942.0,0.794]
[1734321917080,1.92509301,3942.9,3942.0,0.794]
[1734321917285,2.1002245,3942.6,3942.0,0.794]
[1734321917440,4.6366145,3942.6,3942.0,0.794]
[1734321917635,1.92509301,3942.9,3942.0,0.794]
[1734321918136,1.92509301,3942.9,3942.1,0.333091]
[1734321918335,2.53606,3943.2,3942.2,0.7863]
[1734321919378,0.77,3943.3,3942.2,0.7863]
[1734321919682,2.53615,3943.0,3942.2,0.7863]
[1734321919885,1.92509301,3943.5,3942.3,0.55]
[1734321920033,2.85234456,3944.3,3942.7,0.7863]
[1734321920034,2.53551,3944.0,3942.7,0.7863]
[1734321921035,1.92509301,3944.2,3942.7,0.7863]
[1734321921282,1.92509301,3944.2,3942.8,2.53626]
[1734321921436,5.19353776,3944.2,3943.0,0.7863]
[1734321921643,5.19353776,3944.2,3943.1,0.2059402]
[1734321921873,5.19353776,3944.2,3943.2,0.2059402]
[1734321922046,5.19353776,3944.2,3943.0,0.7863]
[1734321922047,5.19353776,3944.2,3943.3,0.07920777]
[1734321922250,2.78252543,3944.1,3943.4,0.07920777]
[1734321922459,2.78252543,3944.1,3943.5,0.07920777]
[1734321922751,2.78252543,3944.1,3943.6,0.07920777]
[1734321923091,1.92509301,3944.1,3943.2,0.8239]
[1734321923399,1.92509301,3944.1,3943.3,0.20593758]
[1734321923584,1.92509301,3944.1,3943.4,0.07920515]
[1734321923781,1.92509301,3944.1,3943.5,0.07920515]
[1734321923960,1.92509301,3944.1,3943.6,0.07920645]
[1734321924168,2.1002245,3944.4,3943.5,0.8239]
[1734321924384,2.86375295,3944.4,3943.6,0.07920268]
[1734321924584,2.53537,3944.2,3943.5,0.8239]
[1734321924785,2.86375295,3944.4,3943.5,0.8239]
[1734321924786,2.1002245,3944.0,3943.5,0.8239]
[1734321924954,2.53556,3943.9,3942.6,0.8239]
[1734321925149,2.53556,3943.9,3942.8,0.8239]
[1734321925400,2.53556,3943.9,3942.9,0.12673776]
[1734321925611,2.53556,3943.9,3942.8,0.8239]
[1734321925896,2.53556,3943.9,3942.9,0.20594808]
[1734321926103,2.53556,3943.9,3943.0,0.0792108]
[1734321926304,2.53556,3943.9,3943.1,0.0792108]
[1734321926474,2.53556,3943.9,3943.2,0.0792108]
[1734321926810,2.1002245,3943.6,3943.3,0.0792108]
[1734321927098,2.53602,3943.2,3942.8,0.8239]
[1734321927657,0.8078,3943.4,3942.8,0.8239]
[1734321928073,2.74589245,3943.5,3942.8,0.8239]
[1734321928413,2.1002245,3943.6,3942.8,0.8239]
[1734321928627,0.76352845,3944.4,3942.8,0.8239]
[1734321928628,2.1002245,3944.0,3942.8,0.8239]
[1734321928923,2.1002245,3944.0,3943.0,0.7951]
[1734321929067,2.1002245,3944.0,3943.1,0.07921958]
[1734321929270,2.1002245,3944.0,3942.6,2.53639]
[1734321929271,2.1002245,3944.0,3943.2,0.07921958]
[1734321929473,2.1002245,3944.0,3943.3,0.87431958]
[1734321929723,2.1002245,3944.0,3943.4,0.07921958]
[1734321929918,2.1002245,3944.0,3943.3,0.7951]
[1734321930123,2.1002245,3944.0,3943.4,0.07920716]
[1734321930303,1.92509301,3944.1,3943.3,0.7951]
[1734321930504,1.92509301,3944.1,3943.5,0.7643]
[1734321930709,2.1002245,3944.4,3943.5,0.7643]
[1734321930898,2.1002245,3944.4,3943.7,0.7643]
[1734321934942,2.5353,3944.3,3943.7,0.7643]
[1734321935082,3.29885245,3944.3,3943.7,0.7643]
[1734321935286,2.1002245,3944.4,3943.7,0.7643]
[1734321936092,5.1002245,3944.8,3943.9,0.7871]
[1734321936581,7.6352145,3944.8,3943.9,0.7871]
[1734321936980,7.6352145,3944.8,3944.0,0.07919502]
[1734321937184,7.6352145,3944.8,3943.9,0.7871]
[1734321937412,7.6352145,3944.8,3944.0,0.07919285]
[1734321937622,7.6352145,3944.8,3943.9,0.7871]
[1734321937828,7.6352145,3944.8,3944.0,0.0791945]
[1734321938034,7.6352145,3944.8,3943.9,0.7871]
[1734321938340,2.53507,3944.7,3944.0,0.07919352]
[1734321938683,2.53507,3944.7,3943.9,0.7871]
[1734321938684,2.53513,3944.6,3943.9,0.7871]
[1734321939001,2.1002245,3944.4,3943.9,0.7871]
[1734321939424,4.6355045,3944.4,3943.9,0.7871]
[1734321941162,3.59026202,3944.7,3944.0,0.07919603]
[1734321941309,2.53511,3944.7,3943.9,0.7871]
[1734321941658,2.53513,3944.6,3944.0,0.07919542]
[1734321941953,2.53513,3944.6,3943.9,0.7871]
[1734321942151,2.53513,3944.6,3944.1,0.07919551]
[1734321942351,2.53513,3944.6,3943.9,0.7871]
[1734321942559,2.53517,3944.5,3943.9,0.7871]
[1734321942761,4.52657965,3944.8,3943.9,0.7871]
[1734321942961,0.80526124,3944.7,3943.9,0.7871]
[1734321943264,2.53527,3944.4,3943.9,0.7871]
[1734321943422,4.52657965,3944.8,3944.0,0.07919712]
[1734321943761,2.60148664,3944.8,3944.2,0.7797]
[1734321945816,2.6973927,3945.0,3944.2,0.7797]
[1734321946151,2.6973927,3945.0,3944.3,0.07919103]
[1734321946354,2.6973927,3945.0,3944.2,0.7797]
[1734321946555,2.6973927,3945.0,3944.3,0.07919095]
[1734321946782,2.53492,3944.9,3944.2,0.7797]
[1734321946984,2.1002245,3944.4,3944.2,0.7797]
[1734321947145,2.5353,3944.3,3943.1,0.7797]
[1734321947347,2.53518,3944.5,3943.3,0.7797]
[1734321947547,2.53518,3944.5,3943.0,6.04584426]
[1734321947548,2.53518,3944.5,3943.4,0.07919759]
[1734321947777,2.53518,3944.5,3943.5,0.85889759]
[1734321948102,2.72299301,3944.7,3943.7,0.8116]
[1734321948103,5.25804301,3944.7,3943.7,0.8116]
[1734321948239,5.25804301,3944.7,3943.8,0.07919759]
[1734321948445,5.25804301,3944.7,3943.7,0.8116]
[1734321948683,5.25804301,3944.7,3943.8,0.0791955]
[1734321948991,2.72299301,3944.7,3943.9,0.0791955]
[1734321949293,2.72299301,3944.7,3944.0,0.0791955]
[1734321949443,2.72299301,3944.7,3944.1,0.0791955]
[1734321949643,2.72299301,3944.7,3944.2,0.0791955]
[1734321949947,2.72299301,3944.7,3943.7,0.8116]
[1734321950143,2.72299301,3944.7,3943.8,0.07919475]
[1734321950398,1.92509301,3944.7,3943.9,0.07919475]
[1734321950694,1.92509301,3944.7,3944.0,0.07919475]
[1734321950900,2.72624517,3944.7,3944.1,0.07919475]
[1734321951194,2.72624517,3944.7,3943.7,0.8116]
[1734321951494,1.92509301,3944.7,3943.8,0.07919537]
[1734321951641,4.46019301,3944.7,3943.8,0.07919537]
[1734321951851,4.46019301,3944.7,3943.7,0.8116]
[1734321952688,0.7763,3944.3,3942.8,1.05498587]
[1734321952897,0.7763,3944.3,3942.9,0.26374647]
[1734321952898,2.70139301,3944.3,3942.9,0.26374647]
[1734321953041,2.70139301,3944.3,3942.5,1.05498587]
[1734321953042,5.23671301,3944.3,3943.2,0.8116]
[1734321953455,5.23671301,3944.3,3943.2,1.146377]
[1734321953882,2.70139301,3944.3,3943.2,1.146377]
[1734321954052,2.53537,3944.2,3943.2,0.8116]
[1734321954272,1.92509301,3944.3,3943.2,0.8116]
[1734321954475,1.92509301,3944.3,3943.3,0.7663]
[1734321954676,1.92509301,3944.3,3943.3,1.09653]
[1734321956409,2.1002245,3944.4,3943.3,1.09653]
[1734321957405,2.1002245,3944.4,3943.4,0.7676]
[1734321957568,1.56175842,3944.9,3942.8,1.05498587]
[1734321957569,1.92509301,3944.9,3943.6,0.7676]
[1734321957766,1.92509301,3944.9,3943.8,0.7725]
[1734321957988,0.98428147,3944.6,3943.8,0.7725]
[1734321961765,0.98428147,3944.6,3943.9,0.8332]
[1734321961973,0.98428147,3944.6,3944.0,0.8332]
[1734321962197,0.98428147,3944.6,3944.0,1.18325]
[1734321962905,0.98428147,3944.7,3944.1,0.7581]
[1734321971848,0.87453766,3944.6,3944.1,0.7581]
[1734321972156,0.98428147,3944.4,3944.1,0.7581]
[1734321973226,0.98428147,3944.4,3944.2,0.07919292]
[1734321973423,0.98428147,3944.4,3944.3,0.07919292]
[1734321974131,0.98428147,3944.4,3944.1,0.7581]
[1734321976004,1.04117228,3944.6,3944.1,0.7581]
[1734321976209,1.56175842,3944.8,3944.3,2.53528]
[1734321976210,1.04117228,3944.8,3944.3,2.53528]
[1734321976526,1.20370498,3945.0,3944.5,0.8025]
[1734321976739,1.86059798,3944.9,3944.5,0.8025]
[1734321976915,0.98428147,3944.9,3944.5,0.8025]
[1734321977365,0.98428147,3944.9,3944.5,1.136272]
[1734321977915,0.1625327,3945.0,3944.6,0.7844]
[1734321978118,0.1625327,3945.0,3944.7,2.53504]
[1734321978421,0.98428147,3944.9,3944.6,0.7844]
[1734321979716,0.98428147,3944.9,3944.6,3.31949]
[1734321980020,0.1625327,3945.0,3944.7,0.7844]
[1734321980217,0.1625327,3945.0,3944.8,0.331949]
[1734321980835,0.1625327,3945.0,3944.9,3.31931]
[1734321981063,0.1625327,3945.0,3944.9,3.86931]
[1734321981429,0.1625327,3945.0,3944.9,6.12336295]
[1734321981677,0.1625327,3945.0,3944.9,5.06836206]
[1734321982129,0.1625327,3945.0,3944.9,3.86931]
[1734321982315,0.1625327,3945.0,3944.9,5.56088784]
[1734321982762,0.1625327,3945.0,3944.9,4.36173959]
[1734321983062,0.1625327,3945.0,3944.9,1.82682959]
[1734321988679,0.1625327,3945.0,3944.9,1.3344]
[1734321992857,0.1625327,3945.0,3944.9,0.7844]
[1734321993074,0.1625327,3945.0,3944.5,0.55]
[1734321993271,0.1625327,3945.0,3944.0,2.53543]
[1734321993454,0.1625327,3945.0,3943.8,2.86753247]
[1734321993820,0.98428147,3944.8,3943.9,0.45535208]
[1734321993953,0.98428147,3944.8,3943.8,0.33192247]
[1734321993954,2.53506,3944.7,3943.8,0.33192247]
[1734321994155,0.98428147,3944.8,3943.7,0.13176]
[1734321994156,2.53511,3944.6,3943.7,0.13176]
[1734321994754,3.51927147,3944.8,3943.7,0.13176]
[1734321995065,0.98428147,3944.5,3943.5,2.5358]
[1734321995264,0.98428147,3944.5,3943.3,2.66436346]
[1734321995483,0.98428147,3944.5,3943.5,0.55]
[1734321996069,0.98428147,3944.5,3943.5,3.55]
[1734321996258,0.98428147,3944.5,3943.7,0.55]
[1734321996695,0.98428147,3944.5,3943.7,1.3405]
[1734321998480,3.51946147,3944.5,3943.7,0.7905]
[1734321998684,0.7644,3944.4,3943.7,0.7905]
[1734322001819,0.7234,3944.4,3943.7,1.123125]
[1734322002604,0.98428147,3944.9,3943.8,0.55]
[1734322002905,0.98428147,3944.9,3944.0,0.55]
[1734322003564,0.98428147,3944.9,3944.0,3.08548]
[1734322003763,0.98428147,3944.9,3944.1,2.921188]
[1734322004168,0.98428147,3944.9,3944.2,3.08535]
[1734322004361,0.1625327,3945.0,3944.4,0.55]
[1734322004689,0.1625327,3945.0,3944.1,3.0]
[1734322004690,0.8098,3944.9,3944.1,3.0]
[1734322004862,0.8098,3944.9,3944.2,0.553544]
[1734322007190,0.8098,3944.9,3944.1,0.7723]
[1734322008809,0.1625327,3945.0,3944.5,0.7723]
[1734322009014,0.1625327,3945.0,3944.8,0.55]
[1734322010561,0.1625327,3945.0,3944.9,0.8113]
[1734322010761,0.1625327,3945.0,3944.9,1.200934]
[1734322011474,0.1625327,3945.0,3944.9,4.285844]
[1734322012211,0.1625327,3945.0,3944.9,7.285844]
[1734322012364,0.1625327,3945.0,3944.9,8.49658941]
[1734322013910,0.1625327,3945.0,3944.9,7.285844]
[1734322017392,0.1625327,3945.0,3944.9,1.750934]
[1734322017863,0.1625327,3945.0,3944.9,1.3613]
[1734322019508,0.1625327,3945.0,3944.9,0.8113]
[1734322021767,0.1625327,3945.0,3944.9,3.89621]
[1734322022002,0.1625327,3945.0,3944.9,8.10701649]
[1734322023099,0.1625327,3945.0,3944.9,9.16188993]
[1734322023317,0.1625327,3945.0,3944.9,10.2363268]
[1734322024250,0.1625327,3945.0,3944.9,12.37783703]
[1734322024454,0.1625327,3945.0,3944.9,10.79535822]
[1734322024952,0.1625327,3945.0,3944.9,12.90532997]
[1734322025123,0.1625327,3945.0,3944.9,10.79535822]
[1734322025326,0.1625327,3945.0,3944.9,12.91343891]
[1734322025654,0.1625327,3945.0,3944.9,13.42738064]
[1734322026456,0.7533,3946.7,3945.2,0.8171]
[1734322026618,0.7533,3946.7,3946.2,2.53403]
[1734322027133,0.7533,3946.7,3946.3,2.53401]
[1734322027334,0.7533,3946.7,3946.4,0.55]
[1734322027705,0.7533,3946.7,3945.6,0.8171]
[1734322028016,0.7533,3946.7,3945.7,0.55]
[1734322028250,0.7533,3946.7,3945.9,2.53424]
[1734322029028,0.7533,3946.7,3945.7,0.55]
[1734322029231,0.7533,3946.7,3945.6,0.8171]
[1734322029840,0.7533,3946.7,3945.7,2.53438]
[1734322030056,0.7533,3946.7,3945.8,0.55]
[1734322030257,0.7533,3946.7,3945.7,0.55]
[1734322030814,0.7533,3946.7,3946.0,2.53418]
[1734322031859,0.7533,3946.7,3945.7,0.55]
[1734322032033,0.7533,3946.7,3945.9,0.55]
[1734322032215,0.7533,3946.7,3945.9,0.99415929]
[1734322032935,2.87915848,3947.3,3946.1,0.55]
[1734322033528,2.87915848,3947.3,3946.3,0.55]
[1734322033529,4.62353848,3947.3,3946.3,0.55]
[1734322033773,3.32245,3947.2,3946.4,0.07914139]
[1734322033976,0.789,3947.0,3945.8,3.0]
[1734322034175,0.789,3947.0,3945.9,0.62914458]
[1734322034375,0.789,3947.0,3946.0,0.07914458]
[1734322034675,0.789,3947.0,3946.1,0.07914458]
[1734322034844,0.789,3947.0,3946.2,0.07914458]
[1734322035047,1.37041936,3947.0,3946.3,0.07914458]
[1734322035275,1.37041936,3947.0,3946.4,0.07914458]
[1734322035435,1.37041936,3947.0,3946.5,0.07914458]
[1734322035635,0.8134,3946.9,3945.7,0.7811]
[1734322035866,0.8134,3946.7,3945.8,0.62914525]
[1734322036182,0.8134,3946.7,3945.9,0.07914523]
[1734322036381,0.8134,3946.7,3946.0,0.07914523]
[1734322036562,0.8134,3946.7,3946.1,0.07914523]
[1734322036732,0.8134,3946.7,3946.2,0.07914523]
[1734322036932,0.8134,3946.7,3946.3,0.07914523]
[1734322037232,0.8134,3946.7,3946.4,0.07914523]
[1734322037431,0.8134,3946.7,3946.5,0.07914523]
[1734322037750,0.8134,3946.7,3946.6,0.07914523]
[1734322039475,0.8134,3946.7,3946.6,0.07914478]
[1734322042905,0.8134,3946.7,3946.6,0.07914397]
[1734322043201,0.8049,3947.0,3946.6,0.07914397]
[1734322043356,0.8049,3947.0,3946.7,0.07914397]
[1734322043698,0.8049,3947.0,3946.8,0.07914397]
[1734322043905,1.78799583,3947.3,3946.9,0.07913993]
[1734322044105,1.78799583,3947.3,3946.3,0.7694]
[1734322044106,0.35164058,3947.2,3946.3,0.7694]
[1734322044310,1.78799583,3947.3,3946.4,0.07913913]
[1734322044454,0.8049,3947.3,3946.5,0.62913913]
[1734322044659,0.8049,3947.3,3946.6,0.07913913]
[1734322044903,0.8049,3947.3,3946.7,0.07913913]
[1734322045108,0.8049,3947.3,3946.8,0.07913913]
[1734322045319,0.8049,3947.3,3946.9,0.07913913]
[1734322045607,0.8049,3947.3,3947.0,0.07913913]
[1734322045768,0.8049,3947.3,3946.5,0.55]
[1734322045964,0.8049,3947.3,3946.6,0.4644665]
[1734322046192,0.8049,3947.3,3946.7,0.0791355]
[1734322046407,0.8049,3947.3,3946.8,0.0791355]
[1734322046567,0.8049,3947.3,3946.9,0.0791355]
[1734322046762,0.8049,3947.3,3947.0,0.0791355]
[1734322046963,0.8049,3947.3,3947.1,0.0791355]
[1734322047163,0.8049,3947.3,3947.2,0.0791355]
[1734322048210,0.8049,3947.3,3946.6,0.385331]
[1734322048409,0.8049,3947.3,3946.7,0.42605693]
[1734322048712,0.8049,3947.3,3946.8,0.07913583]
[1734322048868,0.8049,3947.3,3946.9,0.07913583]
[1734322049064,0.8049,3947.3,3946.3,0.7694]
[1734322049065,0.98309583,3947.2,3947.0,0.07913583]
[1734322049296,0.98309583,3947.2,3946.3,0.7694]
[1734322049495,0.98309583,3947.2,3946.4,0.0791408]
[1734322049684,0.98309583,3947.2,3946.3,1.14634]
[1734322049685,0.98309583,3947.2,3946.5,0.0791408]
[1734322049901,0.8049,3947.3,3946.6,0.0791408]
[1734322050087,0.8049,3947.3,3946.7,0.0791408]
[1734322050412,0.8049,3947.3,3946.8,0.0791408]
[1734322050599,0.8049,3947.3,3946.9,0.0791408]
[1734322050806,0.8049,3947.3,3947.0,0.0791408]
[1734322051110,0.8049,3947.3,3947.1,0.0791408]
[1734322051295,0.8049,3947.3,3947.2,0.0791408]
[1734322053987,0.98309583,3947.5,3947.2,0.0791408]
[1734322054195,0.98309583,3947.5,3947.3,0.0791408]
[1734322054393,0.98309583,3947.5,3947.4,0.0791408]
[1734322055921,0.98309583,3947.5,3947.4,0.07913318]
[1734322056225,0.98309583,3947.5,3946.6,0.7653]
[1734322056431,0.98309583,3947.5,3947.4,0.07913385]
[1734322056596,1.60393271,3947.5,3947.4,0.07913385]
[1734322056927,1.60393271,3947.5,3947.4,0.07913568]
[1734322057083,0.98309583,3947.5,3947.4,0.07913568]
[1734322059211,0.98309583,3947.5,3947.4,0.07913237]
[1734322060038,0.98309583,3947.7,3947.4,0.07913237]
[1734322060221,0.98309583,3947.7,3947.5,0.07913237]
[1734322060541,3.51622583,3947.7,3946.4,1.3601]
[1734322060851,3.51622583,3947.7,3946.5,0.91210612]
[1734322061132,3.51622583,3947.7,3946.6,0.07913206]
[1734322061301,3.51622583,3947.7,3946.7,0.07913206]
[1734322061506,2.53318,3947.6,3946.8,0.07913206]
[1734322061702,0.98309583,3947.4,3946.9,0.07913206]
[1734322061936,0.98309583,3947.4,3947.0,0.07913206]
[1734322062110,0.98309583,3947.4,3947.1,0.07913206]
[1734322062305,0.98309583,3947.4,3947.2,0.07913206]
[1734322062506,0.98309583,3947.4,3947.3,0.07913262]
[1734322063436,4.31770583,3947.4,3947.3,0.07913262]
[1734322063639,4.31770583,3947.4,3946.4,0.8101]
[1734322063837,0.98309583,3947.1,3946.5,0.672111]
[1734322065754,1.92509301,3947.7,3946.0,1.05874064]
[1734322065755,0.98309583,3946.7,3946.0,1.05874064]
[1734322066056,0.98309583,3946.7,3945.7,0.77]
[1734322066057,0.98309583,3946.4,3945.7,0.77]
[1734322067037,1.76549583,3946.9,3945.8,1.2147409]
[1734322067235,2.53371,3946.8,3945.9,1.2147409]
[1734322067411,2.53371,3946.8,3945.7,1.82874064]
[1734322067614,1.76549583,3946.9,3945.8,2.91522116]
[1734322067807,1.76549583,3946.9,3945.9,1.21479536]
[1734322068011,1.76549583,3946.9,3945.8,0.64168516]
[1734322068337,1.71549583,3946.9,3945.8,2.91570146]
[1734322068542,1.71549583,3946.9,3945.9,1.21527566]
[1734322069207,4.24912583,3946.9,3945.9,1.21527566]
[1734322069409,0.87542222,3946.8,3945.9,1.21527566]
[1734322069838,4.24912583,3946.9,3945.9,1.21527566]
[1734322070658,4.24912583,3946.9,3946.0,2.2740163]
[1734322070659,1.71549583,3946.9,3946.0,2.2740163]
[1734322071024,1.71549583,3946.9,3946.1,1.21527566]
[1734322071159,1.71549583,3946.9,3945.9,2.13955988]
[1734322071356,1.71549583,3946.9,3946.0,1.2158281]
[1734322071675,1.71549583,3946.9,3946.1,1.21587711]
[1734322072006,1.71549583,3946.9,3945.9,2.13955988]
[1734322072221,1.71549583,3946.9,3946.0,1.98321147]
[1734322072514,1.71549583,3946.9,3946.0,0.7673666]
[1734322072926,1.71549583,3946.9,3946.1,1.21590773]
[1734322073077,1.71549583,3946.9,3946.0,0.7673666]
[1734322073420,1.71549583,3946.9,3946.1,1.21588758]
[1734322073620,1.71549583,3946.9,3946.0,0.7673666]
[1734322073814,1.71549583,3946.9,3946.1,1.21590523]
[1734322073815,1.69611033,3946.9,3946.1,1.21590523]
[1734322074116,1.69611033,3946.9,3946.0,0.7673666]
[1734322074298,1.69611033,3946.9,3946.1,1.65193408]
[1734322074506,1.69611033,3946.9,3946.1,0.43603572]
[1734322080540,2.96626529,3947.1,3946.2,0.8025]
[1734322080693,1.92509301,3947.1,3946.3,1.21601628]
[1734322080894,1.92509301,3947.1,3946.4,0.30772569]
[1734322081924,0.7836,3947.0,3946.4,0.30772569]
[1734322082315,1.76669583,3947.0,3946.2,0.8025]
[1734322082609,0.87599234,3946.9,3946.0,2.5342]
[1734322082833,1.76669583,3947.0,3946.1,1.21606203]
[1734322083142,1.76669583,3947.0,3946.2,1.2160356]
[1734322083440,1.76669583,3947.0,3946.0,3.59294064]
[1734322083441,1.76669583,3947.0,3946.1,1.6594958]
[1734322083643,1.76669583,3947.0,3946.2,1.2160538]
[1734322083644,0.7836,3947.0,3946.2,1.2160538]
[1734322085846,0.7836,3947.0,3946.2,4.80885444]
[1734322085994,0.7836,3947.0,3946.3,1.91582586]
[1734322086342,0.7836,3947.0,3946.3,0.69977206]
[1734322086855,1.04117228,3947.3,3946.8,2.53366]
[1734322087003,1.92509301,3947.4,3946.9,0.253366]
[1734322087198,0.8096,3947.5,3946.7,2.53375]
[1734322087434,0.8096,3947.5,3946.8,1.21579996]
[1734322087600,0.8096,3947.5,3946.7,2.53375]
[1734322087601,1.79269583,3947.5,3946.7,2.53375]
[1734322087798,1.79269583,3947.5,3946.8,0.44083906]
[1734322088497,0.87642549,3947.4,3946.8,0.44083906]